[Event "Late-Titled-Tuesday-Blitz-March-26-2024"]
[Site "Chess.com"]
[Date "2024.03.26"]
[Round "1"]
[White "varunkrishnanchess"]
[Black "dealshark"]
[Result "1-0"]
[WhiteElo "2616"]
[BlackElo "2286"]
[TimeControl "180+1"]
[EndTime "14:08:02 PDT"]
[Termination "varunkrishnanchess won by resignation"]

1. d4 {[%clk 0:03:00.9]} 1... d5 {[%clk 0:02:59.5]} 2. c4 {[%clk 0:03:00.5]}
2... e6 {[%clk 0:02:59]} 3. Nc3 {[%clk 0:03:00]} 3... c5 {[%clk 0:02:58.2]} 4.
e3 {[%clk 0:02:58]} 4... Nf6 {[%clk 0:02:57.7]} 5. Nf3 {[%clk 0:02:57.7]} 5...
Nc6 {[%clk 0:02:57.9]} 6. a3 {[%clk 0:02:57.8]} 6... dxc4 {[%clk 0:02:57]} 7.
Bxc4 {[%clk 0:02:57.1]} 7... a6 {[%clk 0:02:57.4]} 8. O-O {[%clk 0:02:56]} 8...
b5 {[%clk 0:02:56.4]} 9. Bd3 {[%clk 0:02:55]} 9... Bb7 {[%clk 0:02:56.4]} 10.
dxc5 {[%clk 0:02:52.6]} 10... Bxc5 {[%clk 0:02:55.7]} 11. b4 {[%clk 0:02:52.5]}
11... Bd6 {[%clk 0:02:55.3]} 12. Bb2 {[%clk 0:02:51]} 12... O-O {[%clk 0:02:55]}
13. Ne4 {[%clk 0:02:46.2]} 13... Nxe4 {[%clk 0:02:51.3]} 14. Bxe4 {[%clk
0:02:44.2]} 14... Qe7 {[%clk 0:02:47.4]} 15. Rc1 {[%clk 0:02:14.7]} 15... Rac8
{[%clk 0:02:45.8]} 16. Qd3 {[%clk 0:02:11.3]} 16... h6 {[%clk 0:02:43]} 17. Rfd1
{[%clk 0:02:01.4]} 17... Bb8 {[%clk 0:02:42.8]} 18. h3 {[%clk 0:01:44.6]} 18...
Rfd8 {[%clk 0:02:37.9]} 19. Qb3 {[%clk 0:01:43]} 19... Rxd1+ {[%clk 0:02:28.4]}
20. Qxd1 {[%clk 0:01:43.9]} 20... Rd8 {[%clk 0:02:06.3]} 21. Qc2 {[%clk
0:01:39.4]} 21... Na7 {[%clk 0:01:55.3]} 22. Qc3 {[%clk 0:01:27.2]} 22... f6
{[%clk 0:01:52.3]} 23. Bxb7 {[%clk 0:01:25.6]} 23... Qxb7 {[%clk 0:01:52.1]} 24.
Nd4 {[%clk 0:01:25.8]} 24... Kf7 {[%clk 0:01:42.7]} 25. Qc2 {[%clk 0:01:14.6]}
25... Be5 {[%clk 0:01:38.3]} 26. f4 {[%clk 0:00:59.2]} 26... Rc8 {[%clk
0:01:35.3]} 27. Qd1 {[%clk 0:00:53.9]} 27... Rxc1 {[%clk 0:01:31.5]} 28. Qxc1
{[%clk 0:00:54.8]} 28... Bxd4 {[%clk 0:01:28.3]} 29. Bxd4 {[%clk 0:00:55.7]}
29... Nc6 {[%clk 0:01:24.9]} 30. Bc5 {[%clk 0:00:56.3]} 30... Qd7 {[%clk
0:01:24.5]} 31. Kh2 {[%clk 0:00:55.3]} 31... Qd5 {[%clk 0:01:24.6]} 32. Qc2
{[%clk 0:00:50.6]} 32... e5 {[%clk 0:01:20.4]} 33. f5 {[%clk 0:00:45.5]} 33...
e4 {[%clk 0:01:17.6]} 34. a4 {[%clk 0:00:37.9]} 34... Qxf5 {[%clk 0:01:12.3]}
35. axb5 {[%clk 0:00:34.1]} 35... axb5 {[%clk 0:01:13.2]} 36. Qa2+ {[%clk
0:00:33]} 36... Qe6 {[%clk 0:01:10.9]} 37. Qa6 {[%clk 0:00:30.8]} 37... Ne5
{[%clk 0:00:29.5]} 38. Qxb5 {[%clk 0:00:20.6]} 38... Nd3 {[%clk 0:00:29.9]} 39.
Qb7+ {[%clk 0:00:17.6]} 39... Kg6 {[%clk 0:00:29.7]} 40. Qc7 {[%clk 0:00:18]}
40... Kf5 {[%clk 0:00:17.8]} 41. Qg3 {[%clk 0:00:13.7]} 41... Qe5 {[%clk
0:00:17.4]} 42. Qxe5+ {[%clk 0:00:08.7]} 42... Kxe5 {[%clk 0:00:17.4]} 43. Bd4+
{[%clk 0:00:06.7]} 43... Kd5 {[%clk 0:00:16.5]} 44. b5 {[%clk 0:00:07.2]} 44...
Nb4 {[%clk 0:00:16.3]} 45. Kg3 {[%clk 0:00:04.8]} 45... Nc2 {[%clk 0:00:16.5]}
46. Ba7 {[%clk 0:00:04.5]} 46... f5 {[%clk 0:00:12.2]} 47. Kf4 {[%clk
0:00:03.4]} 47... Ke6 {[%clk 0:00:11.9]} 48. h4 {[%clk 0:00:03.4]} 48... g6
{[%clk 0:00:11.8]} 49. b6 {[%clk 0:00:03.8]} 49... Nb4 {[%clk 0:00:11.1]} 50. b7
{[%clk 0:00:02.7]} 50... Nd5+ {[%clk 0:00:11.3]} 51. Kg3 {[%clk 0:00:03.2]}
51... f4+ {[%clk 0:00:06.5]} 52. exf4 {[%clk 0:00:02.9]} 1-0

[Event "Late-Titled-Tuesday-Blitz-March-26-2024"]
[Site "Chess.com"]
[Date "2024.03.26"]
[Round "1"]
[White "Chesstiger64"]
[Black "Fonsofan"]
[Result "1/2-1/2"]
[WhiteElo "2410"]
[BlackElo "2730"]
[TimeControl "180+1"]
[EndTime "14:08:09 PDT"]
[Termination "Game drawn - insufficient material"]

1. d4 {[%clk 0:03:00.9]} 1... d6 {[%clk 0:02:54.2]} 2. Nf3 {[%clk 0:03:01.5]}
2... g6 {[%clk 0:02:51.1]} 3. e3 {[%clk 0:03:01.8]} 3... Bg7 {[%clk 0:02:51.3]}
4. Be2 {[%clk 0:03:02.3]} 4... Nd7 {[%clk 0:02:51.1]} 5. O-O {[%clk 0:03:02.9]}
5... e5 {[%clk 0:02:52]} 6. c4 {[%clk 0:03:03.1]} 6... Nh6 {[%clk 0:02:52.5]} 7.
Nc3 {[%clk 0:03:03.5]} 7... O-O {[%clk 0:02:53]} 8. b4 {[%clk 0:03:04.1]} 8...
f5 {[%clk 0:02:53]} 9. a4 {[%clk 0:03:04.5]} 9... g5 {[%clk 0:02:53.5]} 10. c5
{[%clk 0:03:03.9]} 10... e4 {[%clk 0:02:49.4]} 11. Nd2 {[%clk 0:03:02.8]} 11...
dxc5 {[%clk 0:02:49.9]} 12. bxc5 {[%clk 0:03:01.4]} 12... b6 {[%clk 0:02:37.9]}
13. Ba3 {[%clk 0:02:51.9]} 13... bxc5 {[%clk 0:02:34.4]} 14. Nb3 {[%clk
0:02:43.5]} 14... cxd4 {[%clk 0:02:22.2]} 15. Nxd4 {[%clk 0:02:43.2]} 15... Ne5
{[%clk 0:02:11.8]} 16. Bxf8 {[%clk 0:02:41.2]} 16... Qxf8 {[%clk 0:02:12.7]} 17.
Qb3+ {[%clk 0:02:40]} 17... Qf7 {[%clk 0:02:07.6]} 18. Qxf7+ {[%clk 0:02:38.2]}
18... Nhxf7 {[%clk 0:02:08.5]} 19. Nd5 {[%clk 0:02:36.3]} 19... c5 {[%clk
0:02:04.5]} 20. Nb5 {[%clk 0:02:33.8]} 20... Kf8 {[%clk 0:01:59.6]} 21. Rab1
{[%clk 0:02:30.5]} 21... Bd7 {[%clk 0:01:54.5]} 22. Nbc7 {[%clk 0:02:27.7]}
22... Rc8 {[%clk 0:01:50.9]} 23. a5 {[%clk 0:02:18.7]} 23... Nd6 {[%clk
0:01:48.9]} 24. Rfd1 {[%clk 0:02:14.5]} 24... c4 {[%clk 0:01:47.6]} 25. Nf6
{[%clk 0:02:02.4]} 25... Bxf6 {[%clk 0:01:35.9]} 26. Rxd6 {[%clk 0:02:02.6]}
26... Ke7 {[%clk 0:01:22.7]} 27. Rxf6 {[%clk 0:01:47.4]} 27... Kxf6 {[%clk
0:01:22.1]} 28. Nd5+ {[%clk 0:01:47.8]} 28... Ke6 {[%clk 0:01:20.4]} 29. Nc3
{[%clk 0:01:47.1]} 29... Rc5 {[%clk 0:01:17.3]} 30. Ra1 {[%clk 0:01:39.9]} 30...
Nd3 {[%clk 0:01:10.3]} 31. g4 {[%clk 0:01:36.3]} 31... Ke5 {[%clk 0:01:04.3]}
32. gxf5 {[%clk 0:01:32.8]} 32... Bxf5 {[%clk 0:01:05.2]} 33. a6 {[%clk
0:01:31]} 33... Bc8 {[%clk 0:00:59.6]} 34. Rb1 {[%clk 0:01:21.6]} 34... Bxa6
{[%clk 0:00:57.6]} 35. Ra1 {[%clk 0:01:21.8]} 35... Rc6 {[%clk 0:00:37.5]} 36.
Ra5+ {[%clk 0:01:21.6]} 36... Nc5 {[%clk 0:00:38.1]} 37. Na4 {[%clk 0:01:17.9]}
37... c3 {[%clk 0:00:29.5]} 38. Nxc3 {[%clk 0:01:06.7]} 38... Bxe2 {[%clk
0:00:25.3]} 39. Nxe2 {[%clk 0:01:07.6]} 39... Rc7 {[%clk 0:00:15.8]} 40. Nd4
{[%clk 0:01:06.6]} 40... Kf6 {[%clk 0:00:14.1]} 41. Kg2 {[%clk 0:01:04.6]} 41...
Nd3 {[%clk 0:00:12.4]} 42. Ra6+ {[%clk 0:01:04]} 42... Kf7 {[%clk 0:00:11.6]}
43. Nf5 {[%clk 0:01:01.6]} 43... Rc2 {[%clk 0:00:10.5]} 44. Rxa7+ {[%clk
0:00:57.8]} 44... Kg6 {[%clk 0:00:10.4]} 45. Ng3 {[%clk 0:00:54.9]} 45... Rxf2+
{[%clk 0:00:10.2]} 46. Kh3 {[%clk 0:00:54.4]} 46... h5 {[%clk 0:00:03.3]} 47.
Ra6+ {[%clk 0:00:54.2]} 47... Rf6 {[%clk 0:00:02]} 48. Rxf6+ {[%clk 0:00:52.9]}
48... Kxf6 {[%clk 0:00:02.9]} 49. Nxe4+ {[%clk 0:00:53.2]} 49... Kg6 {[%clk
0:00:02.5]} 50. Kg3 {[%clk 0:00:52.8]} 50... Ne5 {[%clk 0:00:03]} 51. h3 {[%clk
0:00:52.1]} 51... Nc4 {[%clk 0:00:03.2]} 52. Kf3 {[%clk 0:00:51.7]} 52... Kf5
{[%clk 0:00:02.9]} 53. Ng3+ {[%clk 0:00:51]} 53... Kg6 {[%clk 0:00:03.6]} 54.
Ne4 {[%clk 0:00:51.3]} 54... h4 {[%clk 0:00:02.4]} 55. Nf2 {[%clk 0:00:50.8]}
55... Kf5 {[%clk 0:00:02.1]} 56. e4+ {[%clk 0:00:50.5]} 56... Kg6 {[%clk
0:00:02.4]} 57. Ng4 {[%clk 0:00:50.8]} 57... Nd2+ {[%clk 0:00:02.2]} 58. Ke3
{[%clk 0:00:50.9]} 58... Nf1+ {[%clk 0:00:01.9]} 59. Ke2 {[%clk 0:00:48.7]}
59... Ng3+ {[%clk 0:00:02.4]} 60. Kf3 {[%clk 0:00:48.9]} 60... Kf7 {[%clk
0:00:03.3]} 61. Ne3 {[%clk 0:00:38.6]} 61... Kg6 {[%clk 0:00:03.3]} 62. e5
{[%clk 0:00:35.3]} 62... Nh5 {[%clk 0:00:03.3]} 63. Kg4 {[%clk 0:00:34.8]} 63...
Nf4 {[%clk 0:00:03.7]} 64. Nf5 {[%clk 0:00:34.5]} 64... Ne6 {[%clk 0:00:04.2]}
65. Nxh4+ {[%clk 0:00:34.4]} 65... gxh4 {[%clk 0:00:04]} 66. Kxh4 {[%clk
0:00:34.9]} 66... Kf5 {[%clk 0:00:04.2]} 67. Kg3 {[%clk 0:00:35]} 67... Kxe5
{[%clk 0:00:03.8]} 68. h4 {[%clk 0:00:35.9]} 68... Kf6 {[%clk 0:00:04.6]} 69. h5
{[%clk 0:00:36.4]} 69... Kg5 {[%clk 0:00:04.8]} 70. h6 {[%clk 0:00:37.3]} 70...
Kxh6 {[%clk 0:00:05.6]} 1/2-1/2

[Event "Late-Titled-Tuesday-Blitz-March-26-2024"]
[Site "Chess.com"]
[Date "2024.03.26"]
[Round "1"]
[White "UK_23"]
[Black "Karttunen"]
[Result "0-1"]
[WhiteElo "2397"]
[BlackElo "2714"]
[TimeControl "180+1"]
[EndTime "14:08:09 PDT"]
[Termination "Karttunen won on time"]

1. e4 {[%clk 0:02:53]} 1... c6 {[%clk 0:02:59.8]} 2. Nc3 {[%clk 0:02:50.5]} 2...
d5 {[%clk 0:02:59.6]} 3. Nf3 {[%clk 0:02:49.7]} 3... Nf6 {[%clk 0:02:59]} 4. e5
{[%clk 0:02:47.8]} 4... Ng8 {[%clk 0:02:46.1]} 5. d4 {[%clk 0:02:46.6]} 5... Bg4
{[%clk 0:02:41.7]} 6. h3 {[%clk 0:02:43.2]} 6... Bxf3 {[%clk 0:02:41.6]} 7. Qxf3
{[%clk 0:02:44.1]} 7... e6 {[%clk 0:02:41.8]} 8. Ne2 {[%clk 0:02:36]} 8... c5
{[%clk 0:02:41.2]} 9. c3 {[%clk 0:02:35.9]} 9... Nc6 {[%clk 0:02:41.2]} 10. a3
{[%clk 0:02:29.3]} 10... a5 {[%clk 0:02:40.5]} 11. g3 {[%clk 0:02:11.5]} 11...
a4 {[%clk 0:02:35.4]} 12. Bg2 {[%clk 0:02:11.4]} 12... Qa5 {[%clk 0:02:33.8]}
13. O-O {[%clk 0:02:11.1]} 13... Nge7 {[%clk 0:02:31.6]} 14. Qd3 {[%clk
0:02:05.4]} 14... Qa6 {[%clk 0:02:22.8]} 15. Qd1 {[%clk 0:01:55.9]} 15... Nf5
{[%clk 0:02:16.2]} 16. g4 {[%clk 0:01:53.6]} 16... Nh4 {[%clk 0:02:14.5]} 17.
Bh1 {[%clk 0:01:53.5]} 17... h5 {[%clk 0:02:11.4]} 18. f4 {[%clk 0:01:52.9]}
18... hxg4 {[%clk 0:02:08.7]} 19. hxg4 {[%clk 0:01:53.8]} 19... f5 {[%clk
0:01:40.5]} 20. Be3 {[%clk 0:01:41.7]} 20... fxg4 {[%clk 0:01:32.5]} 21. Ng3
{[%clk 0:01:32.5]} 21... Nf3+ {[%clk 0:01:03]} 22. Bxf3 {[%clk 0:01:32.1]} 22...
gxf3 {[%clk 0:01:03.9]} 23. Qxf3 {[%clk 0:01:32.5]} 23... cxd4 {[%clk
0:00:58.3]} 24. cxd4 {[%clk 0:01:33.4]} 24... O-O-O {[%clk 0:00:56.8]} 25. f5
{[%clk 0:01:31.7]} 25... Na5 {[%clk 0:00:52.7]} 26. fxe6 {[%clk 0:01:05.7]}
26... Qxe6 {[%clk 0:00:51.9]} 27. Qf5 {[%clk 0:00:57.8]} 27... Re8 {[%clk
0:00:43.4]} 28. Rac1+ {[%clk 0:00:52]} 28... Nc4 {[%clk 0:00:41.4]} 29. Bd2
{[%clk 0:00:49.6]} 29... Qxf5 {[%clk 0:00:37.9]} 30. Nxf5 {[%clk 0:00:50.5]}
30... Kd7 {[%clk 0:00:37.8]} 31. Bc3 {[%clk 0:00:50.5]} 31... g6 {[%clk
0:00:36]} 32. Ng3 {[%clk 0:00:46.2]} 32... Be7 {[%clk 0:00:36.4]} 33. Rf7 {[%clk
0:00:45.3]} 33... Ke6 {[%clk 0:00:31.7]} 34. Rcf1 {[%clk 0:00:45.5]} 34... Rh3
{[%clk 0:00:31.8]} 35. Kg2 {[%clk 0:00:42.9]} 35... Reh8 {[%clk 0:00:31.7]} 36.
Rg7 {[%clk 0:00:39.7]} 36... Ne3+ {[%clk 0:00:31.3]} 37. Kf2 {[%clk 0:00:35]}
37... Nxf1 {[%clk 0:00:30.4]} 38. Nxf1 {[%clk 0:00:31.3]} 38... Rf8+ {[%clk
0:00:28]} 39. Kg2 {[%clk 0:00:30.2]} 39... Rh6 {[%clk 0:00:27.7]} 40. Ng3 {[%clk
0:00:21.8]} 40... Rfh8 {[%clk 0:00:16.4]} 41. Kf3 {[%clk 0:00:18.5]} 41... b5
{[%clk 0:00:16.1]} 42. Bd2 {[%clk 0:00:15.9]} 42... Rh3 {[%clk 0:00:14.9]} 43.
Rxg6+ {[%clk 0:00:09.4]} 43... Kf7 {[%clk 0:00:15.3]} 44. Rg4 {[%clk 0:00:09.6]}
44... Rg8 {[%clk 0:00:14.9]} 45. Rxg8 {[%clk 0:00:06.7]} 45... Kxg8 {[%clk
0:00:15]} 46. Bf4 {[%clk 0:00:07.5]} 46... Bf8 {[%clk 0:00:14.9]} 47. Kg4 {[%clk
0:00:07.8]} 47... Rh2 {[%clk 0:00:15]} 48. e6 {[%clk 0:00:06.7]} 48... Rxb2
{[%clk 0:00:15]} 49. Kf5 {[%clk 0:00:06.6]} 49... Bxa3 {[%clk 0:00:15]} 50. Nh5
{[%clk 0:00:07]} 50... Be7 {[%clk 0:00:14.5]} 51. Be5 {[%clk 0:00:05.4]} 51...
Kf8 {[%clk 0:00:14.3]} 52. Nf4 {[%clk 0:00:05.8]} 52... a3 {[%clk 0:00:14]} 53.
Ng6+ {[%clk 0:00:06.1]} 53... Ke8 {[%clk 0:00:14.5]} 54. Nf4 {[%clk 0:00:04.4]}
54... a2 {[%clk 0:00:14.3]} 55. Nxd5 {[%clk 0:00:05.3]} 55... a1=Q {[%clk
0:00:14.2]} 56. Nc7+ {[%clk 0:00:05.7]} 56... Kd8 {[%clk 0:00:14.7]} 57. d5
{[%clk 0:00:04]} 57... Qf1+ {[%clk 0:00:14.3]} 58. Bf4 {[%clk 0:00:04.7]} 58...
Rf2 {[%clk 0:00:13.7]} 0-1

[Event "Late-Titled-Tuesday-Blitz-March-26-2024"]
[Site "Chess.com"]
[Date "2024.03.26"]
[Round "1"]
[White "Hauptsache_Gambit"]
[Black "sotochess"]
[Result "0-1"]
[WhiteElo "2183"]
[BlackElo "2589"]
[TimeControl "180+1"]
[EndTime "14:08:09 PDT"]
[Termination "sotochess won by checkmate"]

1. e4 {[%clk 0:03:00.9]} 1... c5 {[%clk 0:02:59.1]} 2. b4 {[%clk 0:03:00.8]}
2... cxb4 {[%clk 0:02:57]} 3. a3 {[%clk 0:03:00.9]} 3... e6 {[%clk 0:02:53.4]}
4. axb4 {[%clk 0:03:00.6]} 4... Bxb4 {[%clk 0:02:53.1]} 5. Nf3 {[%clk
0:03:00.2]} 5... Nf6 {[%clk 0:02:52.7]} 6. e5 {[%clk 0:03:00.2]} 6... Nd5 {[%clk
0:02:52.4]} 7. c3 {[%clk 0:03:00.3]} 7... Be7 {[%clk 0:02:50]} 8. d4 {[%clk
0:03:00.5]} 8... O-O {[%clk 0:02:49.5]} 9. Bd3 {[%clk 0:03:00.5]} 9... d6 {[%clk
0:02:48.4]} 10. O-O {[%clk 0:02:57.8]} 10... dxe5 {[%clk 0:02:47.1]} 11. Nxe5
{[%clk 0:02:57.9]} 11... Nc6 {[%clk 0:02:46.9]} 12. Nxc6 {[%clk 0:02:40.1]}
12... bxc6 {[%clk 0:02:47.8]} 13. c4 {[%clk 0:02:25.5]} 13... Nb4 {[%clk
0:02:42.3]} 14. Be4 {[%clk 0:02:25.4]} 14... f5 {[%clk 0:02:41.8]} 15. Bf3
{[%clk 0:02:24.7]} 15... a5 {[%clk 0:02:40.9]} 16. Nc3 {[%clk 0:02:24.2]} 16...
Bf6 {[%clk 0:02:39.1]} 17. Be3 {[%clk 0:02:23.8]} 17... Rb8 {[%clk 0:02:37]} 18.
Rc1 {[%clk 0:02:18.7]} 18... Bd7 {[%clk 0:02:29.7]} 19. d5 {[%clk 0:02:17.1]}
19... cxd5 {[%clk 0:02:28.3]} 20. cxd5 {[%clk 0:02:16.9]} 20... e5 {[%clk
0:02:28.4]} 21. Bc5 {[%clk 0:02:10.1]} 21... Re8 {[%clk 0:02:26.9]} 22. Be2
{[%clk 0:02:02]} 22... e4 {[%clk 0:02:22.2]} 23. d6 {[%clk 0:01:40.5]} 23... Kh8
{[%clk 0:02:18.5]} 24. Nd5 {[%clk 0:01:21.4]} 24... Nxd5 {[%clk 0:02:14.1]} 25.
Qxd5 {[%clk 0:01:22.3]} 25... Be5 {[%clk 0:01:59.3]} 26. f4 {[%clk 0:01:11]}
26... exf3 {[%clk 0:01:54.6]} 27. Bxf3 {[%clk 0:01:10.7]} 27... Qh4 {[%clk
0:01:45.2]} 28. g3 {[%clk 0:01:04.2]} 28... Qf6 {[%clk 0:01:43.2]} 29. Ba7
{[%clk 0:00:51.6]} 29... Rb5 {[%clk 0:01:19]} 30. Rc5 {[%clk 0:00:44.8]} 30...
Bd4+ {[%clk 0:01:17.7]} 31. Kg2 {[%clk 0:00:43.7]} 31... Bxc5 {[%clk 0:01:13.4]}
32. Bxc5 {[%clk 0:00:44.6]} 32... Rc8 {[%clk 0:01:13.1]} 33. Rc1 {[%clk
0:00:41.7]} 33... Qb2+ {[%clk 0:01:12.2]} 34. Bf2 {[%clk 0:00:33.5]} 34... Qxc1
{[%clk 0:01:09.6]} 35. Qf7 {[%clk 0:00:33.7]} 35... Bc6 {[%clk 0:00:53.2]} 36.
d7 {[%clk 0:00:29.3]} 36... Bxf3+ {[%clk 0:00:51.8]} 37. Kxf3 {[%clk 0:00:30.2]}
37... Qc6+ {[%clk 0:00:51.9]} 38. Kf4 {[%clk 0:00:30.4]} 38... Qe4+ {[%clk
0:00:51.1]} 39. Kg5 {[%clk 0:00:30.6]} 39... f4+ {[%clk 0:00:50.8]} 40. Kh4
{[%clk 0:00:22.8]} 40... fxg3+ {[%clk 0:00:50.3]} 41. Kh3 {[%clk 0:00:18]} 41...
Rg8 {[%clk 0:00:46.4]} 42. Qxg8+ {[%clk 0:00:13.8]} 42... Kxg8 {[%clk
0:00:45.9]} 43. d8=Q+ {[%clk 0:00:13.9]} 43... Kf7 {[%clk 0:00:46]} 44. Qd7+
{[%clk 0:00:13.8]} 44... Kg6 {[%clk 0:00:41]} 45. Qd6+ {[%clk 0:00:05.1]} 45...
Kh5 {[%clk 0:00:31]} 46. Qxg3 {[%clk 0:00:04.7]} 46... Qf5+ {[%clk 0:00:27.8]}
47. Kg2 {[%clk 0:00:05.3]} 47... Qg5 {[%clk 0:00:27.7]} 48. Kf3 {[%clk
0:00:03.7]} 48... Rb3+ {[%clk 0:00:26.9]} 49. Ke4 {[%clk 0:00:03.6]} 49... Rxg3
{[%clk 0:00:23.4]} 50. Bxg3 {[%clk 0:00:04.5]} 50... Qxg3 {[%clk 0:00:22.7]} 51.
hxg3 {[%clk 0:00:05.4]} 51... Kg4 {[%clk 0:00:23.4]} 52. Ke5 {[%clk 0:00:04.9]}
52... Kxg3 {[%clk 0:00:23.2]} 53. Ke6 {[%clk 0:00:05.8]} 53... a4 {[%clk
0:00:23.8]} 54. Kf7 {[%clk 0:00:06.7]} 54... a3 {[%clk 0:00:24.7]} 55. Kg8
{[%clk 0:00:07.6]} 55... a2 {[%clk 0:00:25.6]} 56. Kh8 {[%clk 0:00:08.5]} 56...
a1=Q {[%clk 0:00:26.5]} 57. Kg8 {[%clk 0:00:09.4]} 57... Qe5 {[%clk 0:00:26.1]}
58. Kh8 {[%clk 0:00:10.3]} 58... g5+ {[%clk 0:00:26.2]} 59. Kg8 {[%clk
0:00:11.2]} 59... Qc7 {[%clk 0:00:26.3]} 60. Kh8 {[%clk 0:00:12.1]} 60... h5
{[%clk 0:00:26.5]} 61. Kg8 {[%clk 0:00:13]} 61... h4 {[%clk 0:00:27.2]} 62. Kh8
{[%clk 0:00:13.9]} 62... h3 {[%clk 0:00:28.1]} 63. Kg8 {[%clk 0:00:14.8]} 63...
h2 {[%clk 0:00:29]} 64. Kh8 {[%clk 0:00:15.7]} 64... h1=Q+ {[%clk 0:00:29.9]}
65. Kg8 {[%clk 0:00:15.9]} 65... Qa8# {[%clk 0:00:29.4]} 0-1

[Event "Late-Titled-Tuesday-Blitz-March-26-2024"]
[Site "Chess.com"]
[Date "2024.03.26"]
[Round "1"]
[White "TedBelanoff"]
[Black "SahibSinghKnight"]
[Result "0-1"]
[WhiteElo "2196"]
[BlackElo "2593"]
[TimeControl "180+1"]
[EndTime "14:08:10 PDT"]
[Termination "SahibSinghKnight won by resignation"]

1. b4 {[%clk 0:03:00.9]} 1... e5 {[%clk 0:02:57]} 2. Bb2 {[%clk 0:02:59.4]} 2...
Bxb4 {[%clk 0:02:56.2]} 3. Bxe5 {[%clk 0:02:59.2]} 3... Nf6 {[%clk 0:02:55.2]}
4. c3 {[%clk 0:02:58.1]} 4... Be7 {[%clk 0:02:52.2]} 5. Nf3 {[%clk 0:02:58.3]}
5... O-O {[%clk 0:02:50]} 6. d4 {[%clk 0:02:57.6]} 6... d5 {[%clk 0:02:47.2]} 7.
e3 {[%clk 0:02:56.8]} 7... Nc6 {[%clk 0:02:45.9]} 8. Bg3 {[%clk 0:02:52]} 8...
Ne4 {[%clk 0:02:43.9]} 9. Bd3 {[%clk 0:02:50.6]} 9... f5 {[%clk 0:02:39.3]} 10.
O-O {[%clk 0:02:49.4]} 10... Be6 {[%clk 0:02:38.5]} 11. Ne5 {[%clk 0:02:48.3]}
11... Nxg3 {[%clk 0:02:30.4]} 12. Nxc6 {[%clk 0:02:48.4]} 12... bxc6 {[%clk
0:02:31.3]} 13. hxg3 {[%clk 0:02:47.9]} 13... c5 {[%clk 0:02:31.3]} 14. Nd2
{[%clk 0:02:44.6]} 14... c4 {[%clk 0:02:26.1]} 15. Bc2 {[%clk 0:02:43.8]} 15...
Rf6 {[%clk 0:02:17.9]} 16. Nf3 {[%clk 0:02:43.9]} 16... Rh6 {[%clk 0:02:17.8]}
17. Ne5 {[%clk 0:02:40.9]} 17... Bd6 {[%clk 0:02:14.5]} 18. f4 {[%clk
0:02:36.2]} 18... g5 {[%clk 0:01:03.6]} 19. Nf3 {[%clk 0:02:31.1]} 19... g4
{[%clk 0:01:00.8]} 20. Nh4 {[%clk 0:02:27.2]} 20... Rxh4 {[%clk 0:00:46.7]} 21.
gxh4 {[%clk 0:02:22.5]} 21... Qxh4 {[%clk 0:00:47.6]} 22. g3 {[%clk 0:02:00.1]}
22... Qxg3+ {[%clk 0:00:47.2]} 23. Kh1 {[%clk 0:02:00.3]} 23... Qh3+ {[%clk
0:00:48.1]} 24. Kg1 {[%clk 0:02:00.3]} 24... Qxe3+ {[%clk 0:00:49]} 25. Kh1
{[%clk 0:01:54.2]} 25... Bxf4 {[%clk 0:00:43.2]} 26. Rxf4 {[%clk 0:01:32.7]}
26... Qxf4 {[%clk 0:00:42.7]} 27. Qe2 {[%clk 0:01:32]} 27... Re8 {[%clk
0:00:34.5]} 28. Rf1 {[%clk 0:01:29.2]} 28... Qh6+ {[%clk 0:00:34.5]} 29. Kg1
{[%clk 0:01:27.8]} 29... Rf8 {[%clk 0:00:30.9]} 30. Qe5 {[%clk 0:01:22.6]} 30...
Qf6 {[%clk 0:00:26.1]} 31. Qxc7 {[%clk 0:01:19.4]} 31... Rf7 {[%clk 0:00:22.5]}
32. Qb8+ {[%clk 0:01:18.5]} 32... Kg7 {[%clk 0:00:23]} 33. Qh2 {[%clk 0:01:18]}
33... h6 {[%clk 0:00:16.5]} 34. Re1 {[%clk 0:01:18.1]} 34... Re7 {[%clk
0:00:11.4]} 35. Qd6 {[%clk 0:01:16.3]} 35... Kf7 {[%clk 0:00:08]} 36. Ba4 {[%clk
0:01:08]} 36... Qh4 {[%clk 0:00:07.1]} 37. Re2 {[%clk 0:01:04.2]} 37... Qg5
{[%clk 0:00:07.3]} 38. Bd7 {[%clk 0:00:57.4]} 38... Bxd7 {[%clk 0:00:06]} 39.
Qxd5+ {[%clk 0:00:57.8]} 39... Be6 {[%clk 0:00:05.7]} 40. Qc5 {[%clk 0:00:54.7]}
40... Rd7 {[%clk 0:00:05.5]} 41. Qc6 {[%clk 0:00:53.9]} 41... Qf6 {[%clk
0:00:04]} 42. d5 {[%clk 0:00:51.2]} 42... Rxd5 {[%clk 0:00:04.2]} 43. Qb7+
{[%clk 0:00:51.2]} 43... Rd7 {[%clk 0:00:04.1]} 44. Qb4 {[%clk 0:00:49.2]} 44...
f4 {[%clk 0:00:04.7]} 45. Qa5 {[%clk 0:00:44.6]} 45... f3 {[%clk 0:00:05.1]} 46.
Qh5+ {[%clk 0:00:43.2]} 46... Kg7 {[%clk 0:00:05.3]} 47. Rf2 {[%clk 0:00:32.4]}
47... Rd1+ {[%clk 0:00:04.1]} 48. Rf1 {[%clk 0:00:32.9]} 48... Rxf1+ {[%clk
0:00:04.3]} 49. Kxf1 {[%clk 0:00:33.8]} 49... g3 {[%clk 0:00:04.8]} 50. Qc5
{[%clk 0:00:31]} 50... Qxc3 {[%clk 0:00:04.1]} 51. Qc7+ {[%clk 0:00:30.1]} 51...
Kf6 {[%clk 0:00:04]} 52. Qf4+ {[%clk 0:00:30]} 52... Bf5 {[%clk 0:00:04.4]} 53.
Qxh6+ {[%clk 0:00:29.1]} 53... Ke7 {[%clk 0:00:03.5]} 54. Qg5+ {[%clk
0:00:28.3]} 54... Ke6 {[%clk 0:00:04.1]} 55. Qg8+ {[%clk 0:00:28.1]} 55... Ke5
{[%clk 0:00:04.3]} 56. Qh8+ {[%clk 0:00:28]} 56... Kf4 {[%clk 0:00:04.2]} 57.
Qxc3 {[%clk 0:00:28.5]} 57... Bd3+ {[%clk 0:00:04.5]} 58. Ke1 {[%clk 0:00:23.3]}
58... f2+ {[%clk 0:00:05.1]} 59. Kd2 {[%clk 0:00:23.6]} 59... f1=Q {[%clk
0:00:06]} 60. Qf6+ {[%clk 0:00:23.6]} 60... Kg4 {[%clk 0:00:05.6]} 61. Qe6+
{[%clk 0:00:23.8]} 61... Qf5 {[%clk 0:00:05.4]} 62. Qg8+ {[%clk 0:00:24]} 62...
Qg5+ {[%clk 0:00:05.8]} 63. Qxg5+ {[%clk 0:00:24.4]} 63... Kxg5 {[%clk
0:00:06.7]} 0-1